Cogmind - Beta 15 @@@ ROGUE MODE // 2025.05.19 @ 12:48:47 Player: Windjigo Result: Self-destructed Performance ------------- Evolutions (5) 2500 Regions Visited (6) 1200 Robots Destroyed (82) 410 Value Destroyed (2571) 2571 Prototype IDs (21) 420 Alien Tech Used (0) 0 Bonus (324) 324 TOTAL SCORE: 7425 Bonus ------- High Alert Combat Kills 24 Registered with UFD 300 Cogmind --------- Core Integrity 717/1000 Matter 217/300 Energy 6/100 System Corruption 3% Temperature Cool (0) Movement Core (400) Ox7 Location -5/Factory Parts ------- > --- POWER (2) -------- (None) > --- PROPULSION (4) --- (None) > --- UTILITY (8) ------ Improved Cooling System Large Storage Unit Advanced Sensor Array Experimental Signal Interpreter > --- WEAPON (3) ------- (None) > --- INVENTORY (15) --- Fusion Compressor Overtuned Scrapsphere Scrap Suit Improved Focal Shield Heavy Phase Cannon Overtuned Coil Gun Overtuned Coil Gun Mini Smartbomb Launcher Plasma Cutter Peak State ------------ > --- POWER ------------ Angular Momentum Engine Fusion Compressor > --- PROPULSION ------- Wheel Wheel Wheel Overtuned Scrapsphere > --- UTILITY ---------- Scrap Suit Improved Cooling System Large Storage Unit Advanced Sensor Array Experimental Signal Interpreter Hardened Medium Armor Plating Advanced Hacking Suite > --- WEAPON ----------- Cooled Pulse Rifle Antimatter Cannon Mini Smartbomb Launcher > --- INVENTORY -------- Angular Momentum Engine Overtuned Medium Treads Overtuned Medium Treads Scrap Suit Improved Focal Shield Improved Shield Generator Cooled Plasma Cannon Heavy Phase Cannon Overtuned Coil Gun Overtuned Coil Gun Plasma Cutter Greatsword Vortex Trap [Rating: 76] Favorites ----------- Power Angular Momentum Engine Engine Angular Momentum Engine Power Core Fusion Compressor Propulsion Wheel Treads Overtuned Medium Treads Wheel Wheel Hover Unit Cooled Airjet Utility Hardened Medium Armor Plating Device Scrap Suit Storage Large Storage Unit Processor Experimental Signal Interpreter Hackware Advanced Hacking Suite Protection Hardened Medium Armor Plating Weapon Subdweller Beam Cannon Energy Gun Cooled Pulse Rifle Energy Cannon Subdweller Beam Cannon Ballistic Gun Overtuned Coil Gun Ballistic Cannon Assault Cannon Launcher Mini Smartbomb Launcher Special Weapon Mining Laser Slashing Weapon Makeshift Sword Build | -11 -10 -10 -8 -8 -6 -5 ------- Run | Yrd Mat Sub Rec Scr Fac Fac Slots Evolved 10 | . . . . . 8 2 Power 1 | . . . . . 1 . Propulsion 2 | . . . . . 1 1 Utility 6 | . . . . . 5 1 Weapon 1 | . . . . . 1 . Parts Attached 81 | 8 13 11 5 5 26 13 Power 14 | 1 2 2 . 1 7 1 Engine 10 | 1 2 2 . 1 4 . Core 4 | . . . . . 3 1 Reactor . | . . . . . . . Propulsion 24 | 3 3 5 1 2 4 6 Treads 2 | . . . . . . 2 Leg . | . . . . . . . Wheel 21 | 3 3 5 1 2 3 4 Hover 1 | . . . . . 1 . Flight . | . . . . . . . Utility 19 | 2 2 1 2 1 9 2 Device 8 | 1 2 . . . 5 . Storage 4 | 1 . . 1 . 2 . Processor 1 | . . . . . 1 . Hackware 2 | . . . . . . 2 Protection 4 | . . 1 1 1 1 . Artifact . | . . . . . . . Weapon 24 | 2 6 3 2 1 6 4 Energy Gun 6 | 2 2 . . . 2 . Energy Cannon 3 | . . 1 . 1 1 . Ballistic Gun 4 | . . . 1 . 2 1 Ballistic Cannon 6 | . 3 1 1 . 1 . Launcher 2 | . . . . . . 2 Special Weapon 1 | . 1 . . . . . Impact Weapon . | . . . . . . . Slashing Weapon 2 | . . 1 . . . 1 Piercing Weapon . | . . . . . . . Special Melee Weapon . | . . . . . . . Unidentified Prototypes 7 | . . . . . 5 2 Parts Lost 22 | . 2 4 . . . 16 Power 3 | . . . . . . 3 Propulsion 10 | . 1 2 . . . 7 Utility 4 | . 1 . . . . 3 Weapon 5 | . . 2 . . . 3 Highest Loss Streak 12 | . 1 2 . . . 12 To Critical Strikes . | . . . . . . . Average Backups 13 | 2 7 7 13 21 11 11 Power . | . 1 . . . . 1 Propulsion 1 | . 1 . . 1 2 1 Utility 5 | . 1 2 7 10 4 2 Weapon 5 | . 3 2 5 8 3 4 Tool/Special . | . . . . . . . Unused Backups 40 | . 3 4 1 20 5 7 Power 1 | . 1 . . . . . Propulsion 2 | . 1 1 . . . . Utility 19 | . 1 1 1 10 3 3 Weapon 17 | . . 2 . 10 2 3 Tool/Special 1 | . . . . . . 1 Average Slot Usage (%) 95 | . 96 99 97 100 92 88 Engine 11 | . 14 14 14 14 7 6 Core 1 | . . . . . 4 3 Wheel 24 | . 26 28 28 28 19 19 Device 11 | . 12 13 . . 21 16 Storage 10 | . 14 13 11 14 6 5 Processor 2 | . . . . . 5 5 Protection 6 | . . . 13 14 4 4 Energy Gun 3 | . 14 2 . . 2 4 Energy Cannon 7 | . . 2 14 14 6 4 Ballistic Gun 2 | . . . 2 . 8 . Ballistic Cannon 8 | . 12 11 11 14 2 4 Slashing Weapon 1 | . . 10 . . . . Peak Build Rating 76 | 7 10 14 15 25 71 76 Average Rating 36 | 5 8 11 14 20 65 72 On Entrance 18 | . 7 8 10 15 24 67 Naked Turns . | . . . . . . . Heaviest Build 110 | 12 17 33 103 110 76 84 Greatest Support 50 | 26 26 30 30 28 36 50 Greatest Overweight (x) 10 | . 1 2 10 6 3 2 Average Overweight (x) 1 | . . . 3 3 1 1 Largest Inventory Capacity 25 | 8 8 8 25 25 25 15 Average Capacity 16 | 7 8 7 22 25 15 15 Most Carried 25 | 5 8 8 19 25 19 15 Average Carried 15 | 2 7 7 14 23 14 14 Final Capacity 25 | 8 8 5 25 25 15 15 Final Carried 21 | 4 8 3 19 21 15 10 Class Distribution -------------------- 49% | Mutant 17% | Scrapper 12% | Scavenger-Skirmisher 9% | Scavenger-Mutant 9% | Skirmisher Dominant Class ---------------- Scavenger-Mutant | -10/Materials Mutant | -10/Subcaves Mutant | -8/Recycling Mutant | -8/Scraptown Scrapper | -6/Factory Skirmisher | -5/Factory Resources | -11 -10 -10 -8 -8 -6 -5 ----------- Run | Yrd Mat Sub Rec Scr Fac Fac Matter Collected 2633 | 280 532 239 50 20 1065 447 Remotely . | . . . . . . . Salvage Created 3320 | 119 447 216 . . 1431 1107 Parts 167 | 6 30 15 . . 56 60 Haulers Intercepted 5 | . 1 . . . 3 1 Recyclers Shooed 2 | 1 . . . . 1 . Parts Field Recycled . | . . . . . . . Retrieved Matter . | . . . . . . . Parts Self-Destructed 3 | . . 3 . . . . Prevented . | . . . . . . . Kills | -11 -10 -10 -8 -8 -6 -5 ------- Run | Yrd Mat Sub Rec Scr Fac Fac Combat Hostiles Destroyed 52 | . 13 6 . . 18 15 Melee 5 | . . 5 . . . . Guns 14 | . 3 1 . . 9 1 Cannons 24 | . 10 . . . 9 5 AOE 9 | . . . . . . 9 Classes Destroyed 14 | 2 5 3 . . 2 2 Worker 7 | . 2 . . . 1 4 Builder 3 | . . . . . . 3 Tunneler 1 | 1 . . . . . . Hauler 5 | . 1 . . . 3 1 Recycler 7 | 1 1 . . . 2 3 Operator 2 | . . . . . 1 1 Watcher 5 | . 1 . . . 3 1 Swarmer 23 | . 6 1 . . 8 8 Grunt 15 | . 7 . . . 5 3 Sentry 4 | . . 1 . . 3 . Hunter 2 | . . . . . . 2 Programmer 4 | . . . . . 2 2 Artisan 1 | . . 1 . . . . Subdweller 4 | . . 4 . . . . Best Kill Streak 21 | 2 6 2 . . 5 21 Combat Bots Only 13 | . 5 2 . . 5 13 Max Kills in Single Turn 5 | 1 2 1 . . 2 5 Gunslinging . | . . . . . . . Exploded 4 | . . . . . . 4 Melee 1 | . . 1 . . . . Uniques/NPCs Destroyed . | . . . . . . . Combat | -11 -10 -10 -8 -8 -6 -5 -------- Run | Yrd Mat Sub Rec Scr Fac Fac Hostile Shots Fired 411 | . 59 110 . . 99 143 Missed 112 | . 16 38 . . 21 37 Hits 299 | . 43 72 . . 78 106 Melee 7 | . . . . . . 7 Projectile 292 | . 43 72 . . 78 99 Critical Strikes 8 | . . 3 . . 2 3 Damage Taken 4515 | . 465 824 . . 1114 2112 Core 606 | . 93 156 . . 74 283 Absorbed by Shields 108 | . . . . . 40 68 Regen/Repaired (Parts) 838 | . . . . 605 212 21 Core Remaining (%) 63 | 100 . . . . 91 . Volleys Fired 174 | 7 55 14 . . 68 30 Largest 3 | 2 2 2 . . 3 3 Hottest 198 | 90 165 95 . . 198 138 Shots Fired 391 | 14 100 22 . . 187 68 Gun 188 | 14 45 8 . . 101 20 Cannon 192 | . 49 14 . . 86 43 Launcher 5 | . . . . . . 5 Special 6 | . 6 . . . . . Kinetic 192 | . 49 14 . . 104 25 Thermal 194 | 14 51 8 . . 83 38 Explosive 5 | . . . . . . 5 Electromagnetic . | . . . . . . . Robot Hit Streak 10 | 6 7 4 . . 9 10 Robot Miss Streak 6 | 3 6 1 . . 5 2 Penetration Max 1 | . . . . . 1 . Secondary Targets . | . . . . . . . Shots Hit Robots 219 | 9 48 29 . . 91 42 Core Hits 127 | 3 22 7 . . 41 54 Critical Kills 2 | . . . . . 2 . Critical Parts Destroyed 1 | . . . . . 1 . Critical Strikes 11 | . 4 2 . . 4 1 Burn 4 | . 3 . . . 1 . Destroy 3 | . . . . . 3 . Blast 1 | . 1 . . . . . Sever 3 | . . 2 . . . 1 Melee Attacks 20 | . . 17 . . . 3 Impact . | . . . . . . . Slashing 20 | . . 17 . . . 3 Piercing . | . . . . . . . Sneak Attacks 1 | . . 1 . . . . Combat Hostiles . | . . . . . . . Follow-up Attacks . | . . . . . . . Damage Inflicted 7554 | 106 855 746 . . 3065 2782 Guns 2654 | 106 312 109 . . 1497 630 Cannons 2794 | . 523 177 . . 1454 640 Explosions 1521 | . . . . . 114 1407 Melee 565 | . . 460 . . . 105 Ramming 20 | . 20 . . . . . Kinetic 2643 | . 523 177 . . 1607 336 Thermal 2805 | 106 312 109 . . 1344 934 Explosive 1388 | . . . . . 114 1274 Electromagnetic 133 | . . . . . . 133 Impact . | . . . . . . . Slashing 565 | . . 460 . . . 105 Piercing . | . . . . . . . Highest Corruption 3 | . . . . . 1 3 Average Corruption 1 | . . . . . 1 1 Corruption Purged . | . . . . . . . Corruption Blocked . | . . . . . . . Effects 18 | . . . . . 14 4 Message Errors 6 | . . . . . 6 . Matter Fused 4 | . . . . . 3 1 Heat Flow Errors 2 | . . . . . 1 1 Energy Discharges 2 | . . . . . 2 . Data Loss (minor) 2 | . . . . . . 2 Alerts 1 | . . . . . 1 . Weapon Failures 1 | . . . . . 1 . Overload Shots 32 | . . . . . 11 21 Effects 3 | . . . . . 2 1 Energy Bleed 2 | . . . . . 1 1 Short Circuit 1 | . . . . . 1 . Overflow Damage 317 | . . 43 . . 108 166 Projectiles 119 | . . . . . 86 33 Explosions 155 | . . . . . 22 133 Melee 43 | . . 43 . . . . Knockbacks 11 | . 8 . . . 1 2 Impact . | . . . . . . . Kinetic 9 | . 6 . . . 1 2 Secondary 2 | . 2 . . . . . Self-Inflicted Damage 456 | . 10 . . . 69 377 Shots 10 | . . . . . 1 9 Rammed 1 | . 1 . . . . . Targets Rammed 1 | . 1 . . . . . Kicked . | . . . . . . . Crushed . | . . . . . . . Highest Temperature 384 | 150 322 18 . . 384 65 Average Temperature 104 | 65 114 13 . . 102 21 Received Heat Transfer 881 | . 126 273 . . 281 201 Effects 3 | . 2 . . . 1 . Shutdowns 1 | . . . . . 1 . Energy Bleed 1 | . 1 . . . . . Interference 1 | . 1 . . . . . Siege Activations . | . . . . . . . Martial Activations . | . . . . . . . Shielding Activations . | . . . . . . . Robots Disrupted 1 | . . . . . . 1 Combat Hostiles . | . . . . . . . Robots Corrupted . | . . . . . . . Combat Hostiles . | . . . . . . . Parts Fried . | . . . . . . . Impact Corruptions . | . . . . . . . Robots Melted . | . . . . . . . Combat Hostiles . | . . . . . . . Parts Melted 15 | . . 1 . . 9 5 Heat Transferred 4936 | 285 1073 259 . . 2094 1225 Parts Sabotaged 4 | . . . . . . 4 Parts Stolen . | . . . . . . . Parts Stripped . | . . . . . . . Power Chain Reactions . | . . . . . . . Alert | -11 -10 -10 -8 -8 -6 -5 ------- Run | Yrd Mat Sub Rec Scr Fac Fac Maximum Alert Level 2 | . . . . . 2 2 Low Security (%) 78 | 100 100 . 100 . 62 78 Level 1 16 | . . . . . 31 10 Level 2 5 | . . . . . 6 10 Level 3 . | . . . . . . . Level 4 . | . . . . . . . Level 5 . | . . . . . . . High Security . | . . . . . . . Max Security . | . . . . . . . Peak Influence 533 | 5 156 . 21 . 533 529 Initial 179 | . . . 21 . . 179 Average 127 | 1 54 . . . 190 165 Influence Increases 2372 | 10 395 100 9 . 1052 806 Destroy 0b10 Robot/C 960 | . 260 40 . . 360 300 Destroy 0b10 Robot/NC 150 | 10 25 . . . 50 65 Destroy Leader 190 | . 54 . . . 92 44 Successful Hack 84 | . 35 . 9 . 27 13 Disable Machine 330 | . 15 . . . 195 120 Anti-Garrison Action 150 | . . . . . 150 . Destroy Structure 253 | . 6 . . . 103 144 Lose Combat Pursuer 255 | . . 60 . . 75 120 Influence Decreases 1957 | 10 395 54 55 . 684 759 Entered New Map 214 | . . . 25 . . 189 Time Decay 1403 | 10 375 44 30 . 534 410 Lost Part 190 | . 20 10 . . . 160 Purge Threat 150 | . . . . . 150 . Squads Dispatched 17 | . 2 . . . 11 4 Investigation 4 | . 1 . . . 3 . Extermination 5 | . . . . . 3 2 Reinforcement 4 | . 1 . . . 2 1 Assault 4 | . . . . . 3 1 Garrison . | . . . . . . . Intercept . | . . . . . . . Searches Triggered . | . . . . . . . Construction Impeded 1 | . . . . . 1 . Haulers Reinforced . | . . . . . . . Active Scanning Responses . | . . . . . . . Cargo Convoy Interrupts 1 | . . . . . . 1 Stealth | -11 -10 -10 -8 -8 -6 -5 --------- Run | Yrd Mat Sub Rec Scr Fac Fac Distress Signals 4 | . 2 . . . . 2 Communications Jammed . | . . . . . . . Distress Signals . | . . . . . . . Times Spotted 113 | . 20 14 . . 30 49 Peak Tracking Total 18 | . 7 4 . . 6 18 Tactical Retreats 10 | . . 3 . . 3 4 Traps | -11 -10 -10 -8 -8 -6 -5 ------- Run | Yrd Mat Sub Rec Scr Fac Fac Traps Triggered 5 | . 2 1 . . 1 1 Indirectly . | . . . . . . . Trap Hack Attempts . | . . . . . . . Triggered . | . . . . . . . Disarmed . | . . . . . . . Reprogrammed . | . . . . . . . Reused . | . . . . . . . Traps Extracted . | . . . . . . . Installed . | . . . . . . . Triggered . | . . . . . . . Most Traps Carried 1 | . . . . 1 1 1 Machines | -11 -10 -10 -8 -8 -6 -5 ---------- Run | Yrd Mat Sub Rec Scr Fac Fac Machines Disabled 23 | . 1 . . . 14 8 Max in Single Turn 4 | . 1 . . . 3 4 Garrison Access 1 | . . . . . 1 . Machines Repaired . | . . . . . . . Machines Dismantled . | . . . . . . . Machines Sabotaged . | . . . . . . . Overloaded Fab Kills . | . . . . . . . Hacking | -11 -10 -10 -8 -8 -6 -5 --------- Run | Yrd Mat Sub Rec Scr Fac Fac Machines Accessed 32 | . 9 . 6 2 10 5 Terminals 20 | . 8 . 3 . 6 3 Fabricators 3 | . . . . . 2 1 Repair Stations 1 | . . . . . 1 . Recycling Units 5 | . 1 . 3 . . 1 Scanalyzers . | . . . . . . . Garrison Access 1 | . . . . . 1 . Total Hacks 91 | . 29 . 18 5 22 17 Successful 53 | . 16 . 11 5 8 13 Failed 38 | . 13 . 7 . 14 4 Catastrophic 8 | . 3 . . . 4 1 Database Lockouts . | . . . . . . . Manual 35 | . 16 . 5 . 8 6 Terminals 65 | . 27 . 11 . 13 14 Fabricators 4 | . . . . . 2 2 Repair Stations 4 | . . . . . 4 . Recycling Units 10 | . 2 . 7 . . 1 Scanalyzers . | . . . . . . . Garrison Access 3 | . . . . . 3 . Terminal Hacks 26 | . 8 . 3 5 2 8 Record 9 | . 1 . . 4 . 4 Prototype ID Bank 1 | . 1 . . . . . Open DSF 1 | . . . . . 1 . Terminal Index 1 | . 1 . . . . . Alert Level 4 | . 1 . 1 . . 2 Unreport Threat 1 | . . . . . 1 . Locate Traps 1 | . 1 . . . . . Security Status 1 | . 1 . . . . . Investigation Status 1 | . . . 1 . . . Hauler Manifests 1 | . . . . . . 1 Zone Layout 4 | . 2 . 1 . . 1 Proto ID Catalog 1 | . . . . 1 . . Fabricator Hacks 2 | . . . . . 1 1 Network Status 2 | . . . . . 1 1 Repair Station Hacks 3 | . . . . . 3 . Scan Component 2 | . . . . . 2 . Repair 1 | . . . . . 1 . Recycling Unit Hacks 7 | . 1 . 5 . . 1 Report Inventory 5 | . 1 . 3 . . 1 Retrieve Components 2 | . . . 2 . . . Scanalyzer . | . . . . . . . Garrison Access Hacks . | . . . . . . . Unauthorized Hacks 15 | . 7 . 3 . 2 3 Terminals 15 | . 7 . 3 . 2 3 Assimilate 1 | . . . . . . 1 Botnet 14 | . 7 . 3 . 2 2 Fabricators . | . . . . . . . Repair Stations . | . . . . . . . Recycling Units . | . . . . . . . Scanalyzers . | . . . . . . . Garrison Access . | . . . . . . . Data Cores Recovered 1 | . . . . . 1 . Used 1 | . . . . . 1 . Hacking Detections 25 | . 8 . 5 . 8 4 Full Trace Events 2 | . . . . . 2 . Feedback Events . | . . . . . . . Feedback Blocked . | . . . . . . . Robot Schematics Acquired . | . . . . . . . Robots Built . | . . . . . . . Authchips . | . . . . . . . Time . | . . . . . . . Total Robot Build Rating . | . . . . . . . Part Schematics Acquired . | . . . . . . . Parts Built . | . . . . . . . Authchips . | . . . . . . . Time . | . . . . . . . Total Part Build Rating . | . . . . . . . Parts Repaired 1 | . . . . . 1 . Time 38 | . . . . . 38 . Parts Recycled . | . . . . . . . Recycled Matter . | . . . . . . . Retrieved Matter . | . . . . . . . Retrieved Components 6 | . . . 6 . . . Parts Scanalyzed . | . . . . . . . Part Schematics Acquired . | . . . . . . . Parts Damaged . | . . . . . . . Bothacking | -11 -10 -10 -8 -8 -6 -5 ------------ Run | Yrd Mat Sub Rec Scr Fac Fac Used RIF Installer . | . . . . . . . Robots Hacked . | . . . . . . . Non-combat . | . . . . . . . Combat . | . . . . . . . Robot Hacks Applied . | . . . . . . . Relay Couplers Released 2 | . . . . . 2 . Machine Destruction 2 | . . . . . 2 . Fabnet Peak Effective % . | . . . . . . . Robots Rewired . | . . . . . . . Allies Hacked . | . . . . . . . Hacks Repelled . | . . . . . . . Allies | -11 -10 -10 -8 -8 -6 -5 -------- Run | Yrd Mat Sub Rec Scr Fac Fac Total Allies . | . . . . . . . Largest Group . | . . . . . . . Highest-Rated Group . | . . . . . . . Highest-Rated Ally . | . . . . . . . Total Orders . | . . . . . . . Ally Attacks . | . . . . . . . Total Damage . | . . . . . . . Kills . | . . . . . . . Allies Corrupted . | . . . . . . . Allies Melted . | . . . . . . . Intel | -11 -10 -10 -8 -8 -6 -5 ------- Run | Yrd Mat Sub Rec Scr Fac Fac Active Infowar (turns) 5180 | 18 737 1011 . . 2453 961 Sensors 4993 | . 568 1011 . . 2453 961 Seismic 187 | 18 169 . . . . . Robot Analysis Total . | . . . . . . . Derelict Logs Recovered 4 | . . 2 . 2 . . Drone Launches . | . . . . . . . Drone Recoveries . | . . . . . . . Exploration | -11 -10 -10 -8 -8 -6 -5 ------------- Run | Yrd Mat Sub Rec Scr Fac Fac Turns Passed 8664 | 74 966 1029 861 2284 2454 996 Spaces Moved 6035 | 46 741 901 586 1601 1507 653 Core 12 | 12 . . . . . . Treads 13 | . . . . . . 13 Legs . | . . . . . . . Wheels 6010 | 34 741 901 586 1601 1507 640 Hover . | . . . . . . . Flight . | . . . . . . . Fastest Speed 50 | 50 80 80 95 133 99 90 Average Speed 109 | 75 82 87 134 139 102 95 Slowest Speed 230 | 90 95 110 230 190 116 160 Overloaded Moves . | . . . . . . . Propulsion Burnouts . | . . . . . . . Robots Hopped . | . . . . . . . Potential Cave-ins . | . . . . . . . Cave-ins Triggered . | . . . . . . . Exploration Rate (%) 51 | 3 97 58 67 93 25 14 Regions Visited 6 Branch Regions 3 Pre-discovered Areas 2 | . . 1 . 1 . . Known Exits Taken 1 | . . . . . 1 . Unknown Exits Taken 5 | 1 1 1 1 1 . . Scrap Searched 9 | . . 1 . 8 . . Spaces Dug 29 | . 5 . . . 18 6 Terrain Destroyed 220 | . 5 . . . 150 65 Melee . | . . . . . . . Projectile 108 | . 5 . . . 86 17 AOE 112 | . . . . . 64 48 Terrain Rammed . | . . . . . . . Walls Destroyed . | . . . . . . . Machines Disabled . | . . . . . . . Actions | -11 -10 -10 -8 -8 -6 -5 --------- Run | Yrd Mat Sub Rec Scr Fac Fac Total 7747 | 70 982 1105 661 1659 2316 954 Wait 1205 | . 139 130 49 1 664 222 Move 6029 | 45 740 900 585 1600 1506 653 Hop . | . . . . . . . Pick Up 98 | 10 13 10 19 24 13 9 Fast Attach 22 | 1 1 . 1 . 10 9 Attach 29 | 6 2 4 2 . 8 7 Detach 2 | . . . . . 2 . Swap 70 | 1 18 12 2 9 16 12 Drop 97 | . 13 18 3 25 29 9 Fire 174 | 7 55 14 . . 68 30 Melee 20 | . . 17 . . . 3 Ram 1 | . 1 . . . . . Kick . | . . . . . . . Crush . | . . . . . . . Escape Stasis . | . . . . . . . Rewire . | . . . . . . . Trap . | . . . . . . . Miscellaneous . | . . . . . . . Route ------- -11/Scrapyard -10/Materials (discovered 5 exits: [*Mat x3] / [*Min] / [*Sub]) -10/Subcaves -8/Recycling -8/Scraptown -6/Factory -5/Factory (discovered 1 exit: *Upp) History --------- Turn | Location | Event 12 | -11/Scrapyard | Discovered new exit (range 16) 75 | -11/Scrapyard | Entered Materials 84 | -10/Materials | Discovered new exit (range 15) 322 | -10/Materials | Build established: Mutant 481 | -10/Materials | Discovered new exit (range 3) 576 | -10/Materials | Discovered new exit (range 16) 802 | -10/Materials | Build established: Scavenger-Mutant 954 | -10/Materials | Discovered new exit (range 7) 978 | -10/Materials | Discovered new exit (range 16) 1041 | -10/Materials | Entered Subcaves 1042 | -10/Subcaves | Approached by a straggling Scientist 1089 | -10/Subcaves | Core integrity fell below 50% 1216 | -10/Subcaves | Shifting Twisted Machinery released Sub. Optics 1245 | -10/Subcaves | Shifting Twisted Machinery released Mak. Sword 1299 | -10/Subcaves | Learned location of Zion (-6) 1299 | -10/Subcaves | Met a Zionite searching for "candidates" 1334 | -10/Subcaves | Learned location of 1 exit from Materials 1558 | -10/Subcaves | Build established: Mutant 1624 | -10/Subcaves | Ambushed by angry Subdweller bent on revenge 1942 | -10/Subcaves | Learned Materials trap positions 1990 | -10/Subcaves | Core integrity fell below 20% 1999 | -10/Subcaves | Discovered new exit (range 15) 2070 | -10/Subcaves | Entered Recycling 2647 | -8/Recycling | Scanned before Scraplab entrance 2909 | -8/Recycling | Entered Scraplab 2928 | -8/Recycling | Discovered new exit (range 2) 2931 | -8/Recycling | Entered Scraptown 3189 | -8/Scraptown | Discovered new exit (range 5) 3277 | -8/Scraptown | Scanned Subdweller tech in exchange for log data 3280 | -8/Scraptown | Learned Factory terminal intel 3281 | -8/Scraptown | Learned 8 Factory zone layouts 3398 | -8/Scraptown | Visited Awakened 3456 | -8/Scraptown | Visited Fellowship of the Rings 3470 | -8/Scraptown | Received an X-ray algorithm 3490 | -8/Scraptown | Visited Shadow of the Wyrm 3845 | -8/Scraptown | Visited Bundlers 3956 | -8/Scraptown | Visited UFD Registry 3956 | -8/Scraptown | Registered with UFD as "Monoshell" 3990 | -8/Scraptown | Visited Research Penetration Think Tank 4035 | -8/Scraptown | Visited Supply Room 4070 | -8/Scraptown | Visited Chapter 10 4135 | -8/Scraptown | Delivered Scrap Shield to a Scientist 4338 | -8/Scraptown | Visited Abandonware Association 4357 | -8/Scraptown | Learned abandonware demo "REBOOT5.EXE" 4387 | -8/Scraptown | Visited Infowarlord's Domain 4395 | -8/Scraptown | Found Exp. Signal Interpreter 4420 | -8/Scraptown | Visited A0-MCA Data Center 4428 | -8/Scraptown | Given a B+ rating by A0-MCA 4446 | -8/Scraptown | Visited Scrapoid Research Area 4562 | -8/Scraptown | Found Scrap Suit 4575 | -8/Scraptown | Found Scrap Suit 4620 | -8/Scraptown | Visited Derelict Rescue Squad 4656 | -8/Scraptown | Visited Science Guys 4717 | -8/Scraptown | Visited Modified Component R&D 5104 | -8/Scraptown | Visited Symbiants 5121 | -8/Scraptown | Visited CR-KLE's Repair Center 5131 | -8/Scraptown | CR-KLE repaired 7 parts 5215 | -8/Scraptown | Entered Factory 5215 | -6/Factory | Evolved 8 slots: Power x1, Propulsion x1, Utility x5, Weapon x1 5216 | -6/Factory | Identified exit to Factory 5217 | -6/Factory | Loaded intel: 26 terminal locations 5511 | -6/Factory | Build established: Scrapper 6826 | -6/Factory | Repaired Hrd. Medium Armor Plating 7119 | -6/Factory | Build established: Scavenger-Skirmisher 7315 | -6/Factory | First assault squad dispatched 7669 | -6/Factory | Entered another Factory area 7669 | -5/Factory | Evolved 2 slots: Propulsion x1, Utility x1 7771 | -5/Factory | Build established: Skirmisher 8042 | -5/Factory | Spotted B-75 Beast 8073 | -5/Factory | Discovered new exit (range 15) 8085 | -5/Factory | Identified exit to Upper Caves 8165 | -5/Factory | Build established: Scavenger-Skirmisher 8181 | -5/Factory | Found Prototype Launcher 8182 | -5/Factory | Identified Mni. Smartbomb Launcher 8186 | -5/Factory | Found Mni. Smartbomb Launcher 8569 | -5/Factory | First assault squad dispatched 8582 | -5/Factory | Destroyed 13 combat bots 8644 | -5/Factory | Cargo convoy interrupted 8665 | -5/Factory | Self-destructed Last Messages --------------- 08644_ X-72 Disruptor unfolds itself. 08644_ Slug penetrates Wall. 08645_ Lgt. Nuclear Core destroyed. 08646_ P-70 Sage resets K-01 Serf, system corruption cleaned. 08646_ K-01 Serf collects debris. 08647_ Ovr. Medium Treads suddenly begins malfunctioning. 08648_ Cld. Pulse Rifle blown off. 08648_ Ovr. Medium Treads blown off. 08648_ E-15 Imp destroyed. 08649_ Dropped Vortex Trap. 08659_ L-41 Fighter Carbon-fiber Leg severed. 08662_ H-66 Slayer destroyed. 08662_ Adv. Hacking Suite destroyed. 08663_ Critical hit (Burn: +37). 08663_ Ovr. Medium Treads destroyed. 08663_ P-70 Sage resets G-67 Veteran, system corruption cleaned. 08664_ Greatsword destroyed. Map ----- +----------------------------------------------------+ | # ] ## #??????????????????????? | | # ## #??????????????????????? | | # ## #######????????????????? | | # # ?????????????? | | # + ????????????? | | # # ?????????????? | | # ### #############?????????????? | | # #?# #?????????????????????????? | | # #?? #?????????????????????????? | | # #?? #?????????????????????????? | | # #?? #?????????????????????????? | | ######+#######?# #?????????????????????????? | | ?????# #???????# #?????????????????????????? | | ?????# #???????# #??????????????????""?????? | | ?????# #???????# #?????????????????""??????? | | ?????# #???????# #????????????????? ??????? | | ?????# #???????# ######???????????? ??????? | | ?????# #???????#g## ???????????== ??????? | | ?????# #???????# ## ??????? ???= ???????? | | ?????# #???????#g## """" "??" ??? ???????? | | ?????# #???????# ## """" """" ??? ???????? | | ?????# #??###### ## """" """" ??? #???????? | | ?????# #?? ! =# ## """" """" ??? #???????? | | ????## ## # ## ??? #???????? | | ????# # """ # ## """" """" ###+#######?? | | ????# > + """ # ##@ """" """" #= %[! #?? | | ????# # """ # ##lg"""" """" =! == "" #?? | | ????## ##= # ##%g"""" """" u !! ""S #?? | | ?????# #??###### ##xp # k" "" #?? | | ?????# #???????# ##p########## " % #?? | | ?????# #???????# #=g############ k = #?# | | ?????# #???????# #/%pxhm # #?# | | ?????# #???????# # hx u! # = = #?# | | ?????# #???????# # m k ####+ # ##### | | ?????# #???????# # !#* %= [ # | | ?????# ######### # = %%# % # | | ?????# # % u%/% = # | | ?????# ####### # = %!#!=%%[ = # | | ?##### #??# # # *%! == # | | ?# # !#??# # #"#[#! # | | ?# #### #??# # ###"" %""% # | | ?# #??## ##??" # #?#"" """" # | | ?# ]#???# #???" # #?#"T """" # | | ?# #???# #???# ##############?#"" # | | ?#] #???# #???# #??###########?#"" """" # | | ?# #???# #???# #??# T #?### """" # | | ?###+##### #???# #??# #???# """" # | | ??# ##### #??# ! ##### # | | ??# """## #??# # [ | | ??# """## #??# """"""" # " F" | +----------------------------------------------------+ Best States ------------- Heat Dissipation 67 Energy Generation 38 Energy Capacity 500 Matter Stores 300 Matter Capacity 300 Sight Range 16 Robot Scan Range 16 Terrain Scan Density 10 Armor Coverage 800 Evasion (%) 50 Recoil Reduction 2 Offensive Hacking 14 Item Schematics ----------------- None Robot Schematics ------------------ None Fabricated ------------ Nothing Repaired ---------- Hrd. Medium Armor Plating | 12% | -6/Factory Alien Tech Used ----------------- None Achievements -------------- None Challenges ------------ None Game ------ Seed LegActiveThermoblaster Manual? 0 Play Time 01:49:03 Cumulative 41.2 hours Start 2025.05.19 @ 10:55:14 End 2025.05.19 @ 12:48:47 Sessions 1 Manual Loads 0 Difficulty Rogue Special Mode None Game No. 30 Rogue 30 Adventurer 0 Explorer 0 Win Type - Total 0 Types 0/0/0/0/0/0/0/0/0/0 Lore% 38 Gallery% 29 Achievement% 23 Wizard Run 0 Options --------- Layout 1 ASCII 0 Keyboard 0 Movement Mouse Keybinds 0 Fullscreen 1 Font 24/Smallcaps Map View 50x35 Zoom Use 0% Tactical HUD 1 Map Filters NONE Filters NONE Steam 1 RUN: ee207b75-640a-488b-be9b-1c5f2e3fd8b6